fUST/lending_fUST_20240515
["ID","MTS","AMOUNT","RATE_DAILY","PERIOD"]
[327053004,1715748632252,-38783.25828661,0.0002,2]
[327053005,1715748632262,-500.0,0.00020907,2]
[327053006,1715748632271,-500.0,0.00020907,2]
[327053007,1715748632280,-441.88968188,0.00020907,2]
[327053008,1715748632289,-3974.71033268,0.00021,2]
[327053009,1715748632298,-433.0,0.00022,2]
[327053010,1715748632308,-180.22791367,0.0002202,2]
[327053011,1715748632318,-433.0,0.00022192,2]
[327053012,1715748632327,-354.9,0.00022403,2]
[327053013,1715748632337,-150.0,0.00022408,2]
[327053014,1715748632346,-433.0,0.00022466,2]
[327053015,1715748632356,-433.0,0.0002274,2]
[327053016,1715748632365,-433.0,0.00023014,2]
[327053017,1715748632374,-433.0,0.00023014,2]
[327053018,1715748632383,-354.9,0.00023548,2]
[327053019,1715748632392,-150.0,0.00023553,2]
[327053020,1715748632402,-620.01518691,0.00023615,2]
[327053021,1715748632411,-359.32406924,0.000239,2]
[327053022,1715748632421,-436.0,0.00024164,2]
[327053023,1715748632430,-433.0,0.00024164,2]
[327053024,1715748632439,-245.41038785,0.00024324,2]
[327053025,1715748632452,-245.41038782,0.0002435,2]
[327053026,1715748632462,-245.41038782,0.00024375,2]
[327053027,1715748632471,-245.41038782,0.00024401,2]
[327053028,1715748632480,-151.0,0.00024424,2]
[327053029,1715748632490,-205.525234,0.00024424,2]
[327053030,1715748632499,-151.0,0.00024424,2]
[327053031,1715748632508,-226.561124,0.00024424,2]
[327053032,1715748632518,-226.561124,0.00024424,2]
[327053033,1715748632528,-151.0,0.00024424,2]
[327053034,1715748632537,-151.0,0.00024424,2]
[327053035,1715748632547,-151.0,0.00024424,2]
[327053036,1715748632557,-152.670985,0.00024424,2]
[327053037,1715748632566,-152.002366,0.00024424,2]
[327053038,1715748632575,-151.0,0.00024424,2]
[327053039,1715748632585,-1045.78976568,0.00024424,2]
[327053040,1715748632594,-5667.87628131,0.00024424,2]
[327053041,1715748632604,-181.30092113,0.00024424,2]
[327053042,1715748632614,-1619.02483885,0.00024424,2]
[327053043,1715748632623,-154.98906939,0.00024425,2]
[327053044,1715748632633,-13269.60999546,0.00024426,3]
[327053045,1715748632642,-151.0,0.00024426,2]
[327053046,1715748632651,-151.0,0.00024426,2]
[327053047,1715748632661,-151.0,0.00024426,2]
[327053048,1715748632671,-151.0,0.00024426,2]
[327053049,1715748632680,-151.0,0.00024426,2]
[327053050,1715748632689,-507.147351,0.00024426,2]
[327053051,1715748632698,-507.147351,0.00024426,2]
[327053052,1715748632708,-507.147351,0.00024426,2]
[327053053,1715748632716,-507.147351,0.00024426,2]
[327053054,1715748632725,-507.147351,0.00024426,2]
[327053055,1715748632734,-507.147351,0.00024426,2]
[327053056,1715748632743,-151.0,0.00024426,2]
[327053057,1715748632753,-151.0,0.00024426,2]
[327053058,1715748632762,-151.0,0.00024426,2]
[327053059,1715748632770,-151.0,0.00024426,2]
[327053060,1715748632780,-245.41038782,0.00024426,2]
[327053061,1715748632788,-226.561124,0.00024426,2]
[327053062,1715748632797,-226.561124,0.00024426,2]
[327053063,1715748632806,-226.561124,0.00024426,2]
[327053064,1715748632815,-226.561124,0.00024426,2]
[327053065,1715748632824,-226.561124,0.00024426,2]
[327053066,1715748632833,-226.561124,0.00024426,2]
[327053067,1715748632841,-151.0,0.00024426,2]
[327053068,1715748632852,-151.0,0.00024426,2]
[327053069,1715748632861,-151.0,0.00024426,2]
[327053070,1715748632870,-151.0,0.00024426,2]
[327053071,1715748632879,-151.0,0.00024426,2]
[327053072,1715748632889,-151.0,0.00024426,2]
[327053073,1715748632898,-151.0,0.00024426,2]
[327053074,1715748632908,-151.0,0.00024426,2]
[327053075,1715748632918,-151.0,0.00024426,2]
[327053076,1715748632927,-19803.05249225,0.00024426,2]
[327053077,1715748632936,-39196.70888954,0.00024426,3]
[327053115,1715748643362,-2744.93316216,0.00018504,2]
[327053117,1715748643373,-500.0,0.00020913,2]
[327053119,1715748643383,-500.0,0.00020913,2]
[327053121,1715748643393,-479.22920616,0.00020913,2]
[327053124,1715748643403,-150.0,0.00022403,2]
[327053126,1715748643412,-49691.29111046,0.00024426,3]
[327053128,1715748643422,-2000.0,0.00024426,2]
[327053129,1715748643431,-2594.3193844,0.00024526,2]
[327053132,1715748643441,-154.82968734,0.00024526,2]
[327053134,1715748643454,-334.77329542,0.00024526,4]
[327053136,1715748643464,-178.70655279,0.00024526,2]
[327053138,1715748643474,-309.70019495,0.00024526,2]
[327053140,1715748643483,-291.33671096,0.00024526,2]
[327053142,1715748643492,-721.33306322,0.00024526,2]
[327053144,1715748643502,-307.91889271,0.00024526,2]
[327053146,1715748643512,-1984.67423095,0.00024526,2]
[327053148,1715748643521,-155.32793049,0.00024526,2]
[327053150,1715748643535,-161.45252522,0.00024526,2]
[327053152,1715748643545,-2803.51973704,0.00024526,2]
[327053154,1715748643554,-379.43536988,0.00024526,2]
[327053156,1715748643564,-186.84975915,0.00024526,2]
[327053158,1715748643574,-155.54545288,0.00024526,2]
[327053160,1715748643584,-1302.51983069,0.00024526,2]
[327053162,1715748643593,-190586.84523746,0.00024526,2]
[327053164,1715748643603,-120979.43952,0.00024526,2]
[327053166,1715748643613,-6866.93916022,0.00024526,2]
[327053168,1715748643623,-153.888925,0.00024526,2]
[327053170,1715748643632,-151.0,0.00024526,2]
[327053172,1715748643642,-151.0,0.00024526,2]
[327053174,1715748643652,-151.0,0.00024526,2]
[327053176,1715748643661,-151.0,0.00024526,2]
[327053178,1715748643671,-151.0,0.00024526,2]
[327053180,1715748643680,-151.0,0.00024526,2]
[327053182,1715748643690,-151.0,0.00024526,2]
[327053185,1715748643699,-151.0,0.00024526,2]
[327053187,1715748643708,-151.0,0.00024526,2]
[327053189,1715748643717,-180.655402,0.00024526,2]
[327053190,1715748643727,-151.0,0.00024526,2]
[327053193,1715748643736,-151.0,0.00024526,2]
[327053194,1715748643746,-151.0,0.00024526,2]
[327053196,1715748643755,-151.0,0.00024526,2]
[327053199,1715748643765,-239.771552,0.00024526,2]
[327053200,1715748643774,-507.147351,0.00024526,2]
[327053202,1715748643783,-507.147351,0.00024526,2]
[327053205,1715748643793,-507.147351,0.00024526,2]
[327053206,1715748643803,-507.147351,0.00024526,2]
[327053209,1715748643812,-507.147351,0.00024526,2]
[327053210,1715748643821,-507.147351,0.00024526,2]
[327053213,1715748643830,-507.147351,0.00024526,2]
[327053215,1715748643840,-507.147351,0.00024526,2]
[327053217,1715748643849,-507.147351,0.00024526,2]
[327053218,1715748643858,-507.147351,0.00024526,2]
[327053220,1715748643867,-151.0,0.00024526,2]
[327053223,1715748643878,-151.0,0.00024526,2]
[327053225,1715748643887,-226.561124,0.00024526,2]
[327053227,1715748643899,-226.561124,0.00024526,2]
[327053229,1715748643908,-226.561124,0.00024526,2]
[327053230,1715748643919,-226.561124,0.00024526,2]
[327053233,1715748643929,-226.561124,0.00024526,2]
[327053235,1715748643938,-226.561124,0.00024526,2]
[327053237,1715748643947,-226.561124,0.00024526,2]
[327053239,1715748643956,-226.561124,0.00024526,2]
[327053241,1715748643968,-226.561124,0.00024526,2]
[327053243,1715748643977,-226.561124,0.00024526,2]
[327053245,1715748643987,-151.0,0.00024526,2]
[327053247,1715748643996,-151.0,0.00024526,2]
[327053249,1715748644005,-151.0,0.00024526,2]
[327053251,1715748644015,-151.0,0.00024526,2]
[327053253,1715748644024,-151.0,0.00024526,2]
[327053255,1715748644033,-222.520986,0.00024526,2]
[327053257,1715748644043,-151.0,0.00024526,2]
[327053259,1715748644052,-182.219324,0.00024526,2]
[327053261,1715748644062,-74940.61856531,0.00024527,2]
[327053263,1715748644071,-151.0,0.00024527,2]
[327053265,1715748644080,-3032.01091325,0.00024527,2]
[327053267,1715748644091,-507.147351,0.00024527,2]
[327053269,1715748644100,-507.147351,0.00024527,2]
[327053271,1715748644110,-226.561124,0.00024527,2]
[327053273,1715748644120,-226.561119,0.00024527,2]
[327053275,1715748644129,-151.0,0.00024527,2]
[327053277,1715748644139,-151.0,0.00024528,2]
[327053279,1715748644149,-262.72148995,0.00024649,2]
[327053281,1715748644158,-155.034814,0.00024657,2]
[327053283,1715748644167,-507.147351,0.00024657,2]
[327053285,1715748644176,-507.147356,0.00024657,2]
[327053287,1715748644186,-17704.15,0.00024657,2]
[327053289,1715748644195,-17704.15,0.00024657,2]
[327053291,1715748644204,-17704.15,0.00024657,2]
[327053293,1715748644214,-17704.15,0.00024657,2]
[327053295,1715748644223,-17704.15,0.00024657,2]
[327053297,1715748644232,-17704.15,0.00024657,2]
[327053299,1715748644242,-17704.15,0.00024657,2]
[327053301,1715748644252,-17704.15,0.00024657,2]
[327053303,1715748644262,-17704.15,0.00024657,2]
[327053306,1715748644272,-17704.15,0.00024657,2]
[327053326,1715748644443,-17704.15,0.00024657,2]
[327053328,1715748644458,-17704.15,0.00024657,2]
[327053330,1715748644468,-17704.15,0.00024657,2]
[327053332,1715748644477,-17704.15,0.00024657,2]
[327053334,1715748644487,-17704.15,0.00024657,2]
[327053336,1715748644496,-17704.15,0.00024657,2]
[327053338,1715748644505,-17704.15,0.00024657,2]
[327053340,1715748644514,-17704.15,0.00024657,2]
[327053342,1715748644524,-17704.15,0.00024657,2]
[327053344,1715748644534,-17704.15,0.00024657,2]
[327053346,1715748644543,-17704.15,0.00024657,2]
[327053348,1715748644553,-17226.15502885,0.00024657,2]
[327053724,1715749355538,1884.51859878,9.999e-05,2]
[327053725,1715749374258,154.82968734,9.999e-05,2]
[327053726,1715749375106,154.82968734,9.999e-05,2]
[327053727,1715749378799,528.18213945,9.999e-05,2]
[327053728,1715749386898,207.16522173,9.999e-05,2]
[327053729,1715749391928,154.82968734,9.999e-05,2]
[327053730,1715749395555,1338.26302922,9.999e-05,2]
[327053731,1715749415267,154.82968734,9.999e-05,2]
[327053732,1715749418773,236.41159802,9.999e-05,2]
[327053733,1715749420001,909.20919161,9.998e-05,2]
[327053734,1715749438803,277.39,0.00024,120]
[327053783,1715749832828,-1896.63950962,0.00018644,2]
[327053785,1715749832838,-590.3458183,0.00018645,2]
[327053787,1715749832853,-2113.61592946,0.00018893,2]
[327053789,1715749832865,-154.82968734,0.00018894,2]
[327053791,1715749832874,-531.36807526,0.00018894,2]
[327053793,1715749832883,-154.82968734,0.00018895,2]
[327053795,1715749832893,-3060.90965728,0.00018895,2]
[327053797,1715749832902,-154.82968734,0.00018895,2]
[327053799,1715749832912,-10445.91088101,0.00018899,2]
[327053801,1715749832922,-1901.10551838,0.000189,2]
[327053803,1715749832932,-165.76807819,0.0001984,2]
[327053805,1715749832942,-230.440659,0.00019957,2]
[327053807,1715749832951,-7447.84827291,0.00019981,2]
[327053809,1715749832960,-499.95393407,0.0002,2]
[327053811,1715749832969,-240.12095836,0.00020913,2]
[327053814,1715749832987,-1236.80017075,0.00021999,2]
[327053816,1715749833001,-5234.99145324,0.00022,4]
[327053818,1715749833011,-564.2,0.00022473,2]
[327053820,1715749833021,-150.0,0.00022491,2]
[327053822,1715749833031,-621.23665658,0.00022619,2]
[327053825,1715749833041,-497.856,0.00023368,2]
[327053827,1715749833052,-154.464,0.00023368,2]
[327053829,1715749833062,-564.2,0.00023612,2]
[327053831,1715749833072,-150.0,0.00023628,2]
[327053833,1715749833082,-620.06183283,0.0002375,2]
[327053835,1715749833092,-1901.10551838,0.000239,2]
[327053837,1715749833102,-52000.14108173,0.00024,2]
[327053839,1715749833114,-3974.71033268,0.00024,2]
[327053841,1715749833123,-592.0,0.000243,2]
[327053843,1715749833134,-2744.93316216,0.00024384,2]
[327053845,1715749833144,-419.66965979,0.00024423,2]
[327053847,1715749833154,-367.3592041,0.00024424,2]
[327053849,1715749833164,-833.00260517,0.00024424,2]
[327053851,1715749833175,-1581.94221985,0.00024424,2]
[327053853,1715749833185,-718.54621689,0.00024424,2]
[327053855,1715749833195,-157.42116521,0.00024424,2]
[327053857,1715749833205,-316.41958791,0.00024424,2]
[327053859,1715749833216,-376.99831877,0.00024424,2]
[327053861,1715749833228,-1481.72596487,0.00024424,2]
[327053863,1715749833239,-475.66686918,0.00024424,2]
[327053865,1715749833250,-975.54957356,0.00024424,2]
[327053867,1715749833262,-320.25112587,0.00024424,2]
[327053869,1715749833272,-155.18075614,0.00024424,2]
[327053871,1715749833284,-155.35365944,0.00024424,2]
[327053873,1715749833295,-150.0,0.00024463,2]
[327053875,1715749833305,-278.0,0.000245,2]
[327053877,1715749833316,-238.8523,0.00024534,2]
[327053879,1715749833327,-170.52153152,0.00024557,2]
[327053881,1715749833338,-32749.8242,0.0002458,2]
[327053883,1715749833349,-281.0,0.000246,2]
[327053885,1715749833367,-416.7728428,0.00024613,2]
[327053887,1715749833379,-363.9167173,0.00024649,2]
[327053889,1715749833390,-2686.63493693,0.00024656,2]
[327053891,1715749833403,-6616.49377411,0.00024657,7]
[327053893,1715749833415,-10415.78624824,0.00024657,2]
[327053895,1715749833426,-3037.59,0.00024657,2]
[327053897,1715749833438,-3037.59,0.00024657,2]
[327053899,1715749833449,-3037.59,0.00024657,2]
[327053901,1715749833460,-3037.59,0.00024657,2]
[327053903,1715749833471,-3037.59,0.00024657,2]
[327053905,1715749833482,-1000.0,0.00024749,2]
[327053907,1715749833492,-564.2,0.0002475,3]
[327053909,1715749833503,-150.0,0.00024765,3]
[327053911,1715749833513,-1000.0,0.00024777,2]
[327053913,1715749833523,-1000.0,0.00024794,2]
[327053915,1715749833533,-2632.55159095,0.00024795,2]
[327053918,1715749833545,-157.41465901,0.00024795,2]
[327053920,1715749833556,-162.94891103,0.00024796,2]
[327053921,1715749833566,-193.60511511,0.00024796,2]
[327053923,1715749833577,-1000.0,0.00024837,2]
[327053925,1715749833588,-1000.0,0.00024851,2]
[327053928,1715749833599,-153.0,0.00024852,2]
[327053930,1715749833615,-153.0,0.00024852,2]
[327053932,1715749833626,-153.0,0.00024852,2]
[327053934,1715749833636,-153.0,0.00024852,2]
[327053936,1715749833646,-153.0,0.00024852,2]
[327053938,1715749833656,-153.0,0.00024852,2]
[327053940,1715749833666,-153.0,0.00024852,2]
[327053942,1715749833677,-153.0,0.00024852,2]
[327053944,1715749833687,-153.0,0.00024852,2]
[327053946,1715749833697,-153.0,0.00024852,2]
[327053948,1715749833707,-153.0,0.00024852,2]
[327053950,1715749833718,-1000.0,0.00024874,2]
[327053952,1715749833728,-786.66799786,0.00024875,30]
[327053954,1715749833738,-1941.58,0.00024897,2]
[327053956,1715749833747,-160.5672541,0.00024897,2]
[327053958,1715749833757,-155.01724274,0.00024898,2]
[327053960,1715749833768,-525.74242885,0.00024898,2]
[327053962,1715749833778,-207.39451134,0.00024898,2]
[327053964,1715749833788,-514.99100215,0.00024898,2]
[327053966,1715749833798,-236.29517146,0.00024898,2]
[327053968,1715749833808,-889.91106519,0.00024898,2]
[327053970,1715749833819,-2000.0,0.00024898,2]
[327053972,1715749833829,-895.23409997,0.00024899,2]
[327053974,1715749833843,-1025.5296326,0.00024899,2]
[327053976,1715749833855,-16646.22844082,0.000249,3]
[327053978,1715749833870,-88888.0,0.000249,3]
[327053980,1715749833880,-1016.26615666,0.00024923,2]
[327053982,1715749833891,-433.0,0.00024932,2]
[327053984,1715749833901,-1000.0,0.00024933,2]
[327053986,1715749833915,-620.00309164,0.00024937,2]
[327053988,1715749833925,-1106.9850932,0.00024944,2]
[327053990,1715749833934,-1000.0,0.00024954,2]
[327053992,1715749833944,-83915.01700748,0.0002499,2]
[327053994,1715749833954,-2754.48049231,0.0002499,2]
[327053996,1715749833963,-653.19148642,0.00024997,2]
[327053998,1715749833973,-3037.59,0.00024997,2]
[327054000,1715749833983,-47662.22191623,0.00024998,2]
[327054002,1715749833993,-488.63019549,0.00024998,2]
[327054004,1715749834003,-3037.59,0.00024998,2]
[327054006,1715749834013,-154.85242977,0.00024999,2]
[327054008,1715749834023,-3037.59,0.00024999,2]
[327054010,1715749834032,-3037.59,0.00024999,2]
[327054012,1715749834042,-3037.59,0.00024999,2]
[327054014,1715749834051,-3037.59,0.00024999,2]
[327054016,1715749834061,-3037.59,0.00024999,2]
[327054018,1715749834071,-190397.63042483,0.00025,2]
[327054020,1715749834080,-400.55879163,0.00025,2]
[327054022,1715749834090,-167.35509674,0.00025,2]
[327054024,1715749834099,-250.0,0.00025,3]
[327054026,1715749834113,-250.0,0.00025,3]
[327054028,1715749834123,-250.0,0.00025,3]
[327054030,1715749834133,-250.0,0.00025,3]
[327054032,1715749834143,-250.0,0.00025,3]
[327054034,1715749834153,-250.0,0.00025,3]
[327054036,1715749834162,-250.0,0.00025,3]
[327054057,1715749834351,-250.0,0.00025,3]
[327054059,1715749834365,-250.0,0.00025,3]
[327054061,1715749834375,-491.98,0.00025,3]
[327054063,1715749834384,-160.0,0.00025,2]
[327054065,1715749834393,-1100.47425411,0.00025,2]
[327054067,1715749834403,-154.97477557,0.00025,2]
[327054069,1715749834412,-152.920149,0.00025,2]
[327054071,1715749834421,-151.0,0.00025,2]
[327054073,1715749834432,-151.0,0.00025,2]
[327054075,1715749834441,-151.0,0.00025,2]
[327054077,1715749834452,-151.0,0.00025,2]
[327054079,1715749834461,-433.0,0.00025,2]
[327054081,1715749834470,-151.0,0.00025,2]
[327054083,1715749834479,-151.0,0.00025,2]
[327054085,1715749834488,-176.235748,0.00025,2]
[327054087,1715749834498,-176.235748,0.00025,2]
[327054089,1715749834507,-151.0,0.00025,2]
[327054091,1715749834516,-151.0,0.00025,2]
[327054093,1715749834525,-151.0,0.00025,2]
[327054095,1715749834534,-151.0,0.00025,2]
[327054097,1715749834543,-718.538092,0.00025,2]
[327054099,1715749834553,-718.538092,0.00025,2]
[327054101,1715749834562,-151.0,0.00025,2]
[327054103,1715749834571,-151.0,0.00025,2]
[327054105,1715749834580,-320.453189,0.00025,2]
[327054107,1715749834589,-320.453189,0.00025,2]
[327054109,1715749834598,-151.0,0.00025,2]
[327054111,1715749834609,-151.0,0.00025,2]
[327054113,1715749834618,-244.103865,0.00025,2]
[327054114,1715749834628,-244.103865,0.00025,2]
[327054116,1715749834637,-151.0,0.00025,2]
[327054118,1715749834647,-151.0,0.00025,2]
[327054120,1715749834656,-151.0,0.00025,2]
[327054122,1715749834666,-151.0,0.00025,2]
[327054124,1715749834675,-284.303342,0.00025,2]
[327054127,1715749834686,-151.0,0.00025,2]
[327054129,1715749834696,-955.102004,0.00025,2]
[327054131,1715749834705,-955.102004,0.00025,2]
[327054133,1715749834715,-151.0,0.00025,2]
[327054134,1715749834725,-524.487666,0.00025,2]
[327054135,1715749834733,-500.410451,0.00025,2]
[327054136,1715749834742,-524.487666,0.00025,2]
[327054137,1715749834751,-500.410451,0.00025,2]
[327054138,1715749834760,-687.127765,0.00025,2]
[327054139,1715749834769,-687.127765,0.00025,2]
[327054140,1715749834778,-151.0,0.00025,2]
[327054141,1715749834787,-151.0,0.00025,2]
[327054142,1715749834795,-151.0,0.00025,2]
[327054143,1715749834804,-153.0,0.00025181,2]
[327054144,1715749834813,-153.0,0.00025181,2]
[327054145,1715749834822,-170.52153152,0.00025229,2]
[327054146,1715749834831,-4939.57353995,0.000255,2]
[327054147,1715749834841,-2000.0,0.000255,2]
[327054148,1715749834854,-220.6990666,0.00025595,2]
[327054149,1715749834866,-155.32348859,0.00025596,2]
[327054150,1715749834875,-154.95966051,0.00025596,2]
[327054151,1715749834886,-155.30777771,0.00025596,2]
[327054152,1715749834895,-154.91042635,0.00025597,2]
[327054153,1715749834904,-500.0,0.00025855,2]
[327054154,1715749834913,-564.2,0.00025889,3]
[327054155,1715749834922,-433.0,0.0002589,2]
[327054156,1715749834932,-170.52153152,0.000259,2]
[327054157,1715749834942,-150.0,0.00025902,3]
[327054158,1715749834951,-562.0,0.00026,2]
[327054160,1715749834959,-562.0,0.00026,2]
[327054162,1715749834969,-153.0,0.00026003,2]
[327054164,1715749834979,-153.0,0.00026003,2]
[327054165,1715749834988,-153.0,0.00026003,2]
[327054167,1715749834999,-153.0,0.00026003,2]
[327054169,1715749835008,-153.0,0.00026003,2]
[327054171,1715749835017,-153.0,0.00026003,2]
[327054173,1715749835027,-153.0,0.00026003,2]
[327054175,1715749835036,-153.0,0.00026003,2]
[327054176,1715749835045,-153.0,0.00026003,2]
[327054178,1715749835054,-153.0,0.00026003,2]
[327054180,1715749835063,-153.0,0.00026003,2]
[327054181,1715749835072,-153.0,0.00026003,2]
[327054183,1715749835082,-153.0,0.00026003,2]
[327054185,1715749835090,-153.0,0.00026003,2]
[327054186,1715749835099,-153.0,0.00026003,2]
[327054187,1715749835111,-153.0,0.00026003,2]
[327054188,1715749835120,-153.0,0.00026003,2]
[327054189,1715749835132,-153.0,0.00026003,2]
[327054190,1715749835141,-156.2706,0.00026003,2]
[327054191,1715749835151,-153.0,0.00026003,2]
[327054192,1715749835161,-153.0,0.00026003,2]
[327054193,1715749835170,-153.0,0.00026003,2]
[327054194,1715749835180,-153.0,0.00026003,2]
[327054195,1715749835189,-153.0,0.00026003,2]
[327054196,1715749835200,-153.0,0.00026003,2]
[327054197,1715749835209,-153.0,0.00026003,2]
[327054198,1715749835218,-153.0,0.00026003,2]
[327054199,1715749835228,-153.0,0.00026003,2]
[327054200,1715749835238,-153.0,0.00026003,2]
[327054201,1715749835247,-153.0,0.00026003,2]
[327054202,1715749835257,-153.0,0.00026003,2]
[327054203,1715749835267,-153.0,0.00026003,2]
[327054204,1715749835276,-153.0,0.00026003,2]
[327054205,1715749835287,-153.0,0.00026003,2]
[327054206,1715749835296,-153.0,0.00026003,2]
[327054207,1715749835306,-153.0,0.00026003,2]
[327054208,1715749835316,-153.0,0.00026003,2]
[327054209,1715749835326,-153.0,0.00026003,2]
[327054210,1715749835336,-153.0,0.00026003,2]
[327054211,1715749835346,-153.0,0.00026003,2]
[327054212,1715749835360,-153.0,0.00026003,2]
[327054213,1715749835369,-153.0,0.00026003,2]
[327054214,1715749835379,-153.0,0.00026003,2]
[327054215,1715749835388,-153.0,0.00026003,2]
[327054216,1715749835398,-153.0,0.00026003,2]
[327054217,1715749835408,-153.0,0.00026003,2]
[327054218,1715749835417,-153.0,0.00026003,2]
[327054219,1715749835427,-153.0,0.00026003,2]
[327054220,1715749835437,-153.0,0.00026003,2]
[327054221,1715749835446,-153.0,0.00026003,2]
[327054222,1715749835455,-153.0,0.00026003,2]
[327054223,1715749835464,-153.0,0.00026003,2]
[327054224,1715749835474,-153.0,0.00026003,2]
[327054225,1715749835483,-153.0,0.00026003,2]
[327054226,1715749835493,-153.0,0.00026003,2]
[327054227,1715749835503,-153.0,0.00026003,2]
[327054228,1715749835512,-153.0,0.00026003,2]
[327054229,1715749835522,-153.0,0.00026003,2]
[327054230,1715749835532,-153.0,0.00026003,2]
[327054231,1715749835541,-153.0,0.00026003,2]
[327054232,1715749835551,-153.0,0.00026003,2]
[327054233,1715749835561,-153.0,0.00026003,2]
[327054234,1715749835570,-230.4413611,0.00026003,2]
[327054235,1715749835580,-395.63561468,0.00026025,2]
[327054236,1715749835590,-492.31289669,0.00026025,2]
[327054237,1715749835601,-154.91214388,0.00026025,2]
[327054238,1715749835615,-4001.17082266,0.00026096,7]
[327054239,1715749835624,-3037.59,0.00026199,2]
[327054240,1715749835634,-3037.59,0.00026199,2]
[327054241,1715749835643,-3037.59,0.00026199,2]
[327054242,1715749835652,-151.0,0.000262,2]
[327054243,1715749835661,-152.028182,0.000262,2]
[327054244,1715749835670,-151.0,0.000262,2]
[327054245,1715749835679,-151.0,0.000262,2]
[327054246,1715749835688,-151.0,0.000262,2]
[327054247,1715749835698,-151.0,0.000262,2]
[327054248,1715749835707,-151.0,0.000262,2]
[327054249,1715749835716,-176.235748,0.000262,2]
[327054250,1715749835726,-176.235748,0.000262,2]
[327054251,1715749835736,-151.0,0.000262,2]
[327054252,1715749835746,-269.331606,0.000262,2]
[327054253,1715749835756,-151.0,0.000262,2]
[327054254,1715749835766,-151.0,0.000262,2]
[327054255,1715749835776,-718.538092,0.000262,2]
[327054256,1715749835786,-718.538092,0.000262,2]
[327054257,1715749835796,-151.0,0.000262,2]
[327054258,1715749835806,-151.0,0.000262,2]
[327054259,1715749835815,-320.453189,0.000262,2]
[327054260,1715749835825,-320.453189,0.000262,2]
[327054261,1715749835835,-160.79235,0.000262,2]
[327054262,1715749835849,-151.0,0.000262,2]
[327054263,1715749835862,-244.103865,0.000262,2]
[327054264,1715749835871,-244.103865,0.000262,2]
[327054265,1715749835882,-151.0,0.000262,2]
[327054266,1715749835891,-151.0,0.000262,2]
[327054267,1715749835901,-151.0,0.000262,2]
[327054268,1715749835910,-151.0,0.000262,2]
[327054269,1715749835920,-151.0,0.000262,2]
[327054270,1715749835932,-955.102004,0.000262,2]
[327054271,1715749835941,-955.102004,0.000262,2]
[327054272,1715749835951,-524.487666,0.000262,2]
[327054273,1715749835961,-500.410451,0.000262,2]
[327054274,1715749835971,-524.487666,0.000262,2]
[327054275,1715749835981,-500.410451,0.000262,2]
[327054276,1715749835990,-687.127765,0.000262,2]
[327054277,1715749835999,-687.127765,0.000262,2]
[327054278,1715749836009,-151.0,0.000262,2]
[327054279,1715749836019,-151.0,0.000262,2]
[327054280,1715749836030,-151.0,0.000262,2]
[327054281,1715749836039,-309.0,0.00026271,35]
[327054282,1715749836049,-208.16,0.00026271,35]
[327054283,1715749836059,-150.5,0.00026281,35]
[327054284,1715749836069,-309.0,0.00026281,35]
[327054285,1715749836080,-156.63,0.00026281,35]
[327054286,1715749836090,-165.36,0.00026281,35]
[327054287,1715749836099,-150.5,0.00026291,35]
[327054288,1715749836111,-150.5,0.00026291,35]